bitfinex/quotes_ETHUSD_20250804
["timestamp","ask_amount","ask_price","bid_price","bid_amount"]
[1754341699761,0.9686,3708.3,3706.6,3.24883426]
[1754341699965,1.103,3708.3,3708.2,2.69672617]
[1754341700868,0.9686,3708.3,3708.2,2.69672617]
[1754341701370,0.1344,3708.5,3708.4,2.69658073]
[1754341701568,0.6084,3708.5,3708.4,2.69658073]
[1754341701769,1.103,3708.5,3708.4,2.69658073]
[1754341701969,0.9686,3708.7,3708.6,2.69636776]
[1754341702164,1.103,3708.7,3708.6,2.69636776]
[1754341702615,1.103,3708.7,3708.5,2.69648733]
[1754341702823,0.9686,3708.6,3708.3,2.69663499]
[1754341703024,0.69230453,3708.7,3708.3,2.69663499]
[1754341703231,0.9686,3708.5,3708.3,2.69663499]
[1754341703424,0.9686,3708.4,3708.3,2.69663499]
[1754341704377,0.1344,3708.5,3708.4,2.69658073]
[1754341704604,0.1344,3708.5,3708.3,2.69663717]
[1754341704819,0.1344,3708.5,3708.4,2.69658073]
[1754341705612,1e-08,3708.9,3708.8,2.6962899]
[1754341705913,7.13800001,3708.9,3708.8,2.6962899]
[1754341706089,4.61200001,3708.9,3708.8,2.6962899]
[1754341706924,4.13700001,3708.9,3708.8,2.6962899]
[1754341708624,1e-08,3708.9,3708.8,2.6962899]
[1754341708820,1e-08,3708.9,3708.8,3.1464899]
[1754341708999,1e-08,3708.9,3708.8,3.74421616]
[1754341709202,1e-08,3708.9,3708.8,3.87861616]
[1754341709921,1e-08,3708.9,3708.8,3.89896239]
[1754341710499,1e-08,3708.9,3708.8,4.25711616]
[1754341710716,1e-08,3708.9,3708.8,3.87861616]
[1754341711609,1e-08,3708.9,3708.8,7.56541616]
[1754341712014,1e-08,3708.9,3708.8,3.42841616]
[1754341712939,1e-08,3708.9,3708.8,3.87861616]
[1754341713835,1e-08,3708.9,3708.8,3.42841616]
[1754341714403,1e-08,3708.9,3708.8,3.87861616]
[1754341715623,1e-08,3708.9,3708.8,8.39311616]
[1754341717537,1e-08,3708.9,3708.8,8.01461616]
[1754341717719,1e-08,3708.9,3708.8,9.56441616]
[1754341718033,1e-08,3708.9,3708.8,10.01461616]
[1754341718932,1e-08,3708.9,3708.8,9.56441616]
[1754341719138,1e-08,3708.9,3708.8,10.39311616]
[1754341719832,1e-08,3708.9,3708.8,10.01461616]
[1754341720628,1e-08,3708.9,3708.8,21.00920733]
[1754341725058,1e-08,3708.9,3708.8,21.38770733]
[1754341726836,1e-08,3708.9,3708.8,24.00920733]
[1754341727764,0.002,3709.6,3709.5,2.6957811]
[1754341727934,0.002,3709.6,3709.5,13.95995038]
[1754341728133,0.002,3709.7,3709.6,2.69570843]
[1754341728334,0.002,3709.7,3709.6,6.85104012]
[1754341728529,0.002,3709.7,3709.6,6.96510843]
[1754341728750,1e-08,3709.7,3709.6,7.46340843]
[1754341728952,1e-08,3709.7,3709.6,9.37703055]
[1754341729640,0.43890001,3709.7,3709.6,9.37703055]
[1754341729841,0.93460001,3709.7,3709.6,9.37703055]
[1754341730066,0.43890001,3709.7,3709.6,9.37703055]
[1754341730843,1e-08,3709.7,3709.6,9.37703055]
[1754341734167,1e-08,3709.7,3709.6,9.87533055]
[1754341734368,1e-08,3710.0,3709.9,2.69549044]
[1754341734568,1e-08,3710.0,3709.9,14.62703352]
[1754341734882,1e-08,3710.1,3710.0,2.69541778]
[1754341735059,1e-08,3710.1,3710.0,7.34804221]
[1754341735377,1e-08,3710.1,3710.0,6.82941778]
[1754341735762,1e-08,3710.1,3710.0,7.32771778]
[1754341735958,1e-08,3710.1,3710.0,7.92544404]
[1754341736277,1e-08,3710.1,3710.0,7.42714404]
[1754341736478,1e-08,3710.1,3710.0,7.92544404]
[1754341737267,1e-08,3710.1,3710.0,7.42714404]
[1754341737585,1e-08,3710.1,3710.0,7.92544404]
[1754341738988,1e-08,3710.1,3710.0,8.60984404]
[1754341739790,1e-08,3710.1,3710.0,11.60984404]
[1754341740093,1e-08,3710.1,3710.0,11.98834404]
[1754341741278,6.473,3712.2,3710.1,3.55]
[1754341741602,0.9346,3712.2,3712.1,2.69389294]
[1754341744653,0.4389,3712.2,3712.1,2.69389294]
[1754341744854,0.1344,3712.8,3712.0,0.1344]
[1754341745089,0.9346,3712.2,3712.1,2.69389294]
[1754341745285,0.1344,3712.8,3712.6,2.6934957]
[1754341745494,0.1344,3712.8,3712.5,2.69357656]
[1754341745695,0.1344,3712.8,3712.3,0.1344]
[1754341745902,0.9346,3712.7,3712.6,2.69352086]
[1754341747004,0.9346,3712.7,3712.4,2.69366679]
[1754341747193,0.1344,3712.8,3712.4,2.69366679]
[1754341747500,0.4389,3712.6,3712.3,0.1344]
[1754341747673,0.4389,3712.6,3712.4,2.69367525]
[1754341748502,3.002,3713.0,3711.8,0.1344]
[1754341748503,0.1344,3712.4,3711.8,0.1344]
[1754341748698,0.1344,3712.4,3711.8,2.82848813]
[1754341748699,0.03367184,3712.3,3711.8,2.82848813]
[1754341748902,0.03367184,3712.3,3711.2,2.69452323]
[1754341748903,2.69390993,3712.1,3710.5,0.4983]
[1754341749077,0.1344,3711.9,3711.3,2.82880757]
[1754341749277,0.9346,3711.8,3711.3,0.1344]
[1754341749478,0.9346,3711.7,3711.3,0.1344]
[1754341749684,0.9346,3711.6,3711.5,2.6943173]
[1754341750482,0.9346,3711.6,3711.3,2.82886688]
[1754341750483,0.9346,3711.6,3711.3,0.1344]
[1754341750680,0.9346,3711.6,3711.0,0.1344]
[1754341750681,2.69446494,3711.4,3711.0,0.1344]
[1754341750895,2.69424137,3711.7,3711.0,0.1344]
[1754341750896,0.9346,3711.3,3711.2,2.69454623]
[1754341752009,0.9346,3711.3,3711.1,2.69460164]
[1754341752192,4.2664,3711.6,3711.2,2.69454623]
[1754341752794,0.9346,3711.5,3711.2,2.69454623]
[1754341752996,4.2664,3711.6,3711.3,2.69446684]
[1754341752997,0.9346,3711.4,3711.3,2.69446684]
[1754341753199,0.9346,3711.4,3711.2,2.69451812]
[1754341753395,0.9346,3711.3,3711.2,2.69451812]
[1754341753709,0.9346,3711.3,3711.0,0.1344]
[1754341753710,0.9346,3711.3,3711.0,2.69463612]
[1754341753910,0.9346,3711.2,3711.0,2.69463612]
[1754341754110,0.9346,3711.1,3710.8,2.82918169]
[1754341754316,0.9346,3711.0,3710.7,2.69484587]
[1754341754616,0.1344,3711.1,3710.8,2.69483669]
[1754341754617,0.9346,3710.9,3710.8,2.69483669]
[1754341755112,0.4389,3710.9,3710.8,2.69483669]
[1754341755291,0.9346,3710.9,3710.8,2.69483669]
[1754341755494,0.9346,3711.4,3710.9,2.69476407]
[1754341755699,0.4389,3711.4,3711.3,2.69447363]
[1754341756101,0.9346,3711.4,3711.3,2.69447363]
[1754341756584,0.1344,3711.7,3711.6,2.69425584]
[1754341756789,4.2664,3711.7,3711.6,2.69425584]
[1754341757006,0.1344,3711.7,3711.6,2.69425584]
[1754341757193,4.2664,3711.7,3711.6,2.69425584]
[1754341757395,5.199,3711.7,3711.6,2.69425584]
[1754341757589,1.067,3711.7,3711.5,2.69426045]
[1754341757789,0.9326,3711.6,3711.5,2.69426045]
[1754341758410,4.2664,3711.7,3711.6,2.69425584]
[1754341758796,5.199,3711.7,3711.6,2.69425584]
[1754341759747,5.199,3711.7,3711.6,3.31615584]
[1754341759748,4.132,3711.7,3711.6,3.31615584]
[1754341759889,4.132,3711.7,3711.6,4.18665275]
[1754341760419,0.9326,3712.1,3712.0,2.69396551]
[1754341760628,5.0646,3712.1,3712.0,2.69396551]
[1754341761622,5.0646,3712.1,3711.9,2.69401549]
[1754341761798,0.9326,3712.0,3711.8,2.69409941]
[1754341762004,1.067,3711.9,3711.6,2.69425464]
[1754341762204,1.067,3711.9,3710.6,0.4875]
[1754341762205,0.9326,3711.8,3711.4,2.69434466]
[1754341762501,0.1344,3711.5,3711.3,2.69444463]
[1754341762701,5.0646,3711.4,3711.3,2.69444463]
[1754341764451,5.0646,3711.4,3710.8,2.82920363]
[1754341764452,5.0646,3711.4,3710.9,2.69476407]
[1754341764623,5.0646,3711.4,3711.3,2.69447363]
[1754341765641,5.56596475,3711.4,3709.7,0.001]
[1754341765842,0.1344,3711.1,3710.9,2.69469353]
[1754341766054,4.134,3711.0,3710.4,2.69506934]
[1754341766364,4.134,3711.0,3710.3,0.1344]
[1754341766365,0.1344,3710.8,3710.5,0.14907025]
[1754341766510,0.9326,3710.7,3710.4,0.14907025]
[1754341766862,5.0676,3710.6,3710.5,2.69501265]
[1754341767369,5.0676,3710.6,3710.4,2.69511173]
[1754341767527,4.135,3710.6,3710.1,2.69633541]
[1754341767727,1.067,3710.5,3710.3,2.69515352]
[1754341767962,1.067,3710.5,3710.2,2.69527017]
[1754341767963,0.1344,3710.4,3710.2,2.69527017]
[1754341768167,0.1344,3710.4,3710.3,0.14917676]
[1754341768377,1.067,3710.4,3710.3,0.14917676]
[1754341768669,1.067,3710.4,3710.2,0.14917676]
[1754341768888,0.9326,3710.3,3710.2,2.84444438]
[1754341769093,0.9326,3710.3,3710.1,0.001]
[1754341769258,4.134,3710.2,3710.1,2.69634513]
[1754341769458,5.0666,3710.2,3710.1,2.69634513]
[1754341770499,5.0666,3710.2,3710.1,0.001]
[1754341770981,5.201,3710.2,3710.1,0.001]
[1754341771389,5.201,3710.2,3710.1,2.69634513]
[1754341773997,5.201,3710.2,3710.1,0.001]
[1754341774378,5.201,3710.2,3710.1,2.69634513]
[1754341774784,5.201,3710.2,3710.1,0.001]
[1754341775179,5.201,3710.2,3710.1,2.69634513]
[1754341775386,5.201,3710.2,3710.1,0.001]
[1754341775604,5.201,3710.2,3710.1,2.69634513]
[1754341776118,5.201,3710.2,3710.1,0.001]
[1754341776701,5.201,3710.2,3710.1,2.69634513]
[1754341778718,4.711,3710.2,3710.1,2.69634513]
[1754341779232,5.201,3710.2,3710.1,0.001]
[1754341779421,11.41637249,3710.2,3710.1,0.001]
[1754341779910,11.96637249,3710.2,3710.1,0.001]
[1754341780687,22.96577415,3710.2,3710.1,0.001]
[1754341781508,11.96637249,3710.2,3710.1,0.001]
[1754341781708,7.2674,3710.2,3710.1,0.001]
[1754341782016,4.2674,3710.2,3710.1,3.18384513]
[1754341782229,4.2674,3710.2,3710.1,2.69634513]
[1754341783040,5.2,3710.2,3710.1,0.001]
[1754341783244,11.4186414,3710.2,3710.1,0.001]
[1754341783841,4.45596891,3710.2,3710.1,0.001]
[1754341784030,7.133,3710.2,3710.1,0.001]
[1754341784231,8.0656,3710.2,3710.1,0.001]
[1754341784906,8.0676,3710.2,3710.1,0.001]
[1754341785346,3.0,3710.2,3710.1,2.69634513]
[1754341785644,7.135,3710.2,3710.1,3.18384513]
[1754341785937,7.135,3710.2,3710.1,3.13384513]
[1754341786108,4.135,3710.2,3710.1,3.13384513]
[1754341786705,7.135,3710.2,3710.1,3.13384513]
[1754341787505,0.1344,3710.3,3710.2,2.69527249]
[1754341787751,4.2694,3710.3,3710.2,2.69527249]
[1754341788034,4.135,3710.3,3710.2,3.15817249]
[1754341788336,0.1344,3710.7,3710.6,2.69498194]
[1754341788537,7.2684,3710.7,3710.6,2.69498194]
[1754341789127,3.1344,3710.7,3710.6,2.69498194]
[1754341789306,7.2684,3710.7,3710.6,2.69498194]
[1754341789512,3.1344,3710.7,3710.6,2.69498194]
[1754341790010,7.2674,3710.7,3710.6,2.69498194]
[1754341790559,3.1344,3710.7,3710.6,2.69498194]
[1754341790913,7.2674,3710.7,3710.6,2.69498194]
[1754341792740,0.50136475,3711.4,3710.6,0.8414]
[1754341793059,3.0,3710.9,3710.8,2.69483669]
[1754341793349,7.133,3710.9,3710.8,3.15773669]
[1754341794270,0.1364,3711.1,3711.0,2.69469145]
[1754341794425,0.9383,3711.0,3710.1,0.4629]
[1754341794626,4.133,3710.9,3710.6,2.69496664]
[1754341794823,0.9383,3710.8,3710.6,2.69496664]
[1754341795247,0.9383,3710.8,3710.5,2.69503245]
[1754341795442,0.4963,3710.8,3710.5,2.69503245]
[1754341795647,0.442,3710.7,3710.3,0.1344]
[1754341795848,4.133,3710.6,3710.5,2.6950403]
[1754341796145,4.133,3710.6,3710.5,2.84464919]
[1754341797716,4.133,3710.6,3710.5,0.14960889]
[1754341798036,0.1344,3710.5,3710.4,2.69512721]
[1754341798240,0.1344,3710.5,3710.4,2.8447361]
[1754341800479,0.1344,3710.5,3710.4,0.14960889]
[1754341800780,1.59327,3710.5,3710.3,2.6951353]
[1754341800938,0.9383,3710.4,3710.3,2.6951353]
[1754341801140,0.9383,3710.4,3710.3,2.84478862]
[1754341801940,0.9383,3710.4,3710.3,0.14965332]
[1754341802246,0.9383,3710.4,3710.2,2.69525773]
[1754341802578,4.133,3710.3,3710.2,2.69525773]
[1754341802774,4.133,3710.3,3710.2,2.84491555]
[1754341805790,0.1344,3710.5,3710.4,2.69512721]
[1754341806121,0.1344,3710.5,3710.4,3.15802721]
[1754341806122,4.2674,3710.5,3710.4,3.15802721]
[1754341807527,4.2674,3710.5,3710.1,0.001]
[1754341807821,4.2674,3710.5,3710.2,3.15811047]
[1754341808016,4.2674,3710.5,3710.3,2.69518712]
[1754341808611,4.2674,3710.5,3710.4,2.69512721]
[1754341808808,0.442,3710.7,3710.5,2.69501066]
[1754341808809,3.0,3710.6,3710.5,2.69501066]
[1754341811423,3.442,3710.6,3710.4,2.69505495]
[1754341811720,4.133,3710.5,3710.4,2.69505495]
[1754341813153,4.133,3710.5,3710.3,3.15805344]
[1754341813449,4.60394,3710.5,3710.1,0.1354]
[1754341813650,1.0727,3710.4,3710.1,0.001]
[1754341813951,4.133,3710.3,3710.1,0.001]
[1754341814453,0.9383,3710.2,3710.1,0.001]
[1754341814751,1.49589291,3710.2,3710.1,0.001]
[1754341816554,1.49589291,3710.2,3710.1,2.69634513]
[1754341816555,0.55759291,3710.2,3710.1,2.69634513]
[1754341816868,4.133,3710.3,3710.1,0.001]
[1754341817039,4.133,3710.3,3710.1,2.69634042]
[1754341817242,5.0605,3710.3,3710.1,2.69634042]
[1754341817457,4.5665,3710.3,3710.1,2.69634042]
[1754341819073,4.5665,3710.3,3710.2,2.69527249]
[1754341819674,0.1344,3710.2,3710.1,2.6963364]
[1754341820266,0.5679,3710.2,3710.1,2.6963364]
[1754341821951,0.5679,3710.2,3710.1,0.001]
[1754341822158,0.5679,3710.2,3710.1,2.69634513]
[1754341823360,4.2674,3710.3,3710.2,2.69527249]
[1754341824427,4.7009,3710.3,3710.2,2.69527249]
[1754341826757,4.133,3710.3,3710.2,3.16387249]
[1754341826964,4.133,3710.3,3710.2,4.05728047]
[1754341827975,3.496,3710.9,3710.2,4.05728047]
[1754341827976,0.002,3710.9,3710.8,2.69483669]
[1754341828146,0.002,3710.9,3710.8,2.71514658]
[1754341828467,0.002,3710.9,3710.8,3.67633669]
[1754341828635,0.002,3710.9,3710.8,4.31549954]
[1754341831462,0.002,3710.9,3710.8,3.93699954]
[1754341832590,0.002,3710.9,3710.8,4.31549954]
[1754341832886,0.002,3710.9,3710.8,3.93699954]
[1754341837787,0.002,3711.1,3711.0,2.69469145]
[1754341837991,0.002,3711.1,3711.0,3.79339786]
[1754341838156,0.002,3711.1,3711.0,4.37609159]
[1754341839956,1e-08,3711.1,3711.0,4.37609159]
[1754341840192,0.002,3711.3,3711.0,4.37609159]
[1754341840193,1e-08,3711.3,3711.2,2.69454623]
[1754341840361,1e-08,3711.3,3711.2,8.4510563]
[1754341840561,1e-08,3711.3,3711.2,9.41225366]
[1754341840784,0.4355,3712.3,3712.2,2.69382037]
[1754341840988,0.002,3712.3,3712.2,2.69382037]
[1754341841368,0.4355,3712.3,3712.2,2.69382037]
[1754341841685,0.9295,3712.3,3712.2,2.69382037]
[1754341842486,1.33589,3712.3,3712.2,2.69382037]
[1754341842691,1.47029,3712.3,3712.2,2.69382037]
[1754341843394,1.0639,3712.3,3712.2,2.69382037]
[1754341844103,0.1364,3712.3,3712.2,2.69382037]
[1754341844287,4.133,3712.3,3712.2,2.69382037]
[1754341844665,5.0605,3712.3,3712.2,2.69382037]
[1754341845396,5.0605,3712.3,3711.9,2.69397401]
[1754341845397,0.1344,3712.2,3711.9,2.69397401]
[1754341845561,0.9275,3712.1,3712.0,2.69396551]
[1754341847592,1.44699,3712.1,3711.6,0.1344]
[1754341847792,0.9553,3712.0,3711.8,2.69405888]
[1754341847990,4.13,3711.9,3711.8,2.69405888]
[1754341848294,5.2197,3711.9,3711.8,2.69405888]
[1754341849894,5.2197,3711.9,3711.2,0.1344]
[1754341850996,5.2197,3711.9,3711.8,2.69411067]
[1754341852166,5.2197,3711.9,3711.4,3.14817532]
[1754341852167,0.9553,3712.2,3712.1,2.69389294]
[1754341852400,5.0853,3712.2,3712.1,2.69389294]
[1754341852778,8.0853,3712.2,3712.1,2.69389294]
[1754341852982,3.9553,3712.2,3712.1,2.69389294]
[1754341853174,8.0853,3712.2,3712.1,2.69389294]
[1754341854792,8.0843,3712.2,3712.1,2.69389294]
[1754341856288,0.1344,3712.1,3711.9,2.69397269]
[1754341856469,0.1344,3712.1,3712.0,2.69396551]
[1754341857173,1.0897,3712.1,3712.0,2.69396551]
[1754341857374,4.2634,3712.1,3712.0,2.69396551]
[1754341858371,0.1344,3712.1,3712.0,3.27814669]
[1754341858571,5.0843,3712.1,3712.0,3.27814363]
[1754341858800,4.601,3712.1,3712.0,2.69396245]
[1754341859003,5.0843,3712.1,3712.0,2.69396245]
[1754341859184,0.002,3712.3,3712.2,2.69382037]
[1754341859783,0.002,3712.3,3712.2,3.52612037]
[1754341860195,0.002,3712.3,3712.2,3.66052037]
[1754341860496,0.002,3712.3,3712.2,4.29596865]
[1754341860703,0.002,3712.3,3712.2,3.91746865]
[1754341861005,0.002,3712.3,3712.2,4.29596865]
[1754341861777,0.002,3712.3,3712.2,19.96741188]
[1754341861778,1e-08,3712.3,3712.2,19.96741188]
[1754341861988,4.07900001,3712.9,3712.8,2.69338504]
[1754341862186,4.07900001,3712.9,3712.8,2.82778504]
[1754341862385,4.07900001,3712.9,3712.8,3.28158504]
[1754341862591,0.002,3713.1,3713.0,2.69323996]
[1754341862786,4.131,3713.1,3713.0,2.69323996]
[1754341862991,0.002,3713.1,3713.0,3.28143996]
[1754341864912,0.002,3713.1,3713.0,2.82763996]
[1754341865791,0.9573,3713.1,3713.0,0.1344]
[1754341865996,1.46613,3713.1,3713.0,2.69323996]
[1754341866195,0.9573,3713.1,3713.0,2.69323996]
[1754341866397,5.0853,3713.1,3713.0,2.69323996]
[1754341866604,0.9573,3713.1,3713.0,2.69323996]
[1754341866835,5.0853,3713.1,3713.0,2.69323996]
[1754341867136,0.002,3713.1,3713.0,2.69323996]
[1754341867299,0.002,3713.1,3713.0,4.08942895]
[1754341868119,0.002,3713.1,3713.0,3.28143996]
[1754341871111,0.472,3713.6,3713.3,2.69302237]
[1754341871311,0.472,3713.6,3713.0,3.14703996]
[1754341871312,4.128,3713.5,3713.4,2.69294985]
[1754341872003,4.6,3713.5,3713.4,2.69294985]
[1754341872203,5.0833,3713.5,3713.4,2.69294985]
[1754341872594,0.1344,3713.9,3713.5,2.69284289]
[1754341872798,60.00000001,3721.1,3713.6,0.4538]
[1754341872799,0.472,3714.5,3713.6,0.4538]
[1754341873016,0.472,3714.5,3714.4,2.69222485]
[1754341873219,4.23937362,3714.7,3714.6,2.6920799]
[1754341873420,0.10737362,3714.7,3714.6,2.6920799]
[1754341874136,1.06267362,3714.7,3714.6,2.6920799]
[1754341874318,0.472,3715.7,3714.7,0.55]
[1754341874508,0.4833,3715.6,3714.6,1.34673633]
[1754341874709,0.472,3715.5,3715.2,2.69158557]
[1754341874910,4.161,3715.8,3714.7,4.161]
[1754341875129,0.472,3715.9,3715.8,2.6912105]
[1754341875534,0.472,3715.9,3715.6,2.6912992]
[1754341875535,4.164,3716.2,3716.1,2.69099324]
[1754341875830,0.472,3716.4,3716.3,2.69084842]
[1754341876219,2.83012823,3718.2,3715.6,0.4538]
[1754341876220,4.165,3716.5,3715.6,0.4538]
[1754341876420,1.3718,3716.4,3716.1,2.69096413]
[1754341876622,0.9354,3716.3,3715.6,2.69133571]
[1754341876821,0.9354,3716.3,3715.8,2.6912105]
[1754341877037,0.9354,3716.2,3716.0,2.69102157]
[1754341877224,0.9354,3716.2,3715.6,4.17]
[1754341877537,0.9354,3716.1,3715.5,2.6914278]
[1754341877722,4.30419,3716.2,3715.5,2.6914278]
[1754341877723,0.9354,3716.0,3715.5,2.6914278]
[1754341877923,4.30419,3716.2,3715.1,2.69168618]
[1754341877924,3.62659553,3715.9,3715.1,2.69168618]
[1754341878126,0.9354,3715.8,3714.8,4.168]
[1754341878325,5.1034,3715.7,3714.6,0.4858]
[1754341878641,1.71486332,3715.6,3715.1,2.69168626]
[1754341878813,0.77946332,3715.6,3715.2,0.4858]
[1754341879013,0.9354,3716.0,3715.3,0.4858]
[1754341879218,4.169,3715.9,3715.7,2.69127909]
[1754341879406,4.169,3715.9,3715.8,2.6912105]
[1754341880120,4.169,3716.0,3715.9,2.69113808]
[1754341880341,4.119,3716.0,3715.9,2.69113808]
[1754341880640,0.4165,3716.4,3715.9,2.69113808]
[1754341880641,4.5855,3716.4,3716.2,2.69092083]
[1754341880870,4.5855,3716.4,3716.1,2.69099324]
[1754341881029,3.0,3716.9,3716.3,2.69084842]
[1754341881030,4.168,3716.9,3716.3,2.69084842]
[1754341881226,4.168,3716.9,3716.4,0.4858]
[1754341881454,4.168,3716.9,3716.8,2.69048643]
[1754341881648,4.168,3716.9,3716.5,0.4858]
[1754341881847,5.41604,3716.9,3716.5,2.69065283]
[1754341882059,5.41604,3716.9,3716.7,2.69054476]
[1754341882248,4.169,3716.9,3716.1,0.4858]
[1754341882448,4.169,3716.9,3716.8,2.69048643]
[1754341882658,4.169,3716.9,3716.8,3.17628643]
[1754341882859,4.6067,3716.9,3716.7,0.1344]
[1754341883061,4.169,3716.9,3716.7,0.1344]
[1754341883223,0.4377,3716.8,3716.7,0.1344]
[1754341883556,0.4377,3716.8,3716.2,0.4858]
[1754341883557,0.9354,3716.8,3716.5,2.69064085]
[1754341883757,0.9354,3716.8,3716.6,2.69062311]
[1754341884140,0.4377,3716.8,3716.5,0.1344]
[1754341884334,4.68144,3716.9,3716.7,2.69055882]
[1754341884574,4.68144,3716.9,3716.2,0.4858]
[1754341884575,0.4977,3717.1,3716.8,2.69042842]
[1754341884742,4.17,3717.0,3716.8,2.69042842]
[1754341884938,0.4377,3716.9,3716.7,0.1344]
[1754341885136,0.9354,3716.8,3716.5,2.82504211]
[1754341885465,0.4377,3716.8,3716.7,2.69055882]
[1754341885658,0.4377,3716.8,3716.6,2.69061893]
[1754341885871,0.1344,3717.2,3717.1,2.69026929]
[1754341886173,4.168,3717.4,3717.2,2.69017498]
[1754341886332,4.168,3717.4,3717.3,2.69012455]
[1754341886530,1.0698,3717.8,3717.5,2.68997982]
[1754341886731,4.171,3717.6,3717.5,2.68997982]
[1754341886932,4.6087,3717.6,3717.5,2.68997982]
[1754341887133,0.4397,3717.6,3717.5,2.68997982]
[1754341887462,0.4397,3717.6,3717.3,2.69012455]
[1754341887463,0.9374,3717.6,3717.1,2.82466393]
[1754341887636,4.12,3717.7,3717.1,2.82466393]
[1754341887968,0.4377,3717.5,3717.1,0.1344]
[1754341888130,0.4377,3717.5,3717.4,2.69005218]
[1754341888901,0.4377,3717.5,3717.1,0.1344]
[1754341889300,0.4377,3717.4,3717.1,0.1344]
[1754341889487,0.9354,3717.4,3717.1,0.1344]
[1754341889810,4.165,3717.3,3716.4,3.0]
[1754341889978,4.2994,3717.3,3717.0,2.69031644]
[1754341890178,4.165,3717.4,3717.0,0.4858]
[1754341890379,4.165,3717.4,3717.2,0.1344]
[1754341890691,4.767798,3717.4,3717.0,2.69032409]
[1754341890869,4.767798,3717.4,3716.8,0.1344]
[1754341891190,4.767798,3717.4,3716.9,2.69036614]
[1754341891502,0.74577638,3717.3,3717.0,2.69033076]
[1754341891667,0.4377,3717.2,3717.0,2.69033076]
[1754341892294,0.4377,3717.2,3716.8,2.82488559]
[1754341892295,0.4377,3717.2,3717.1,2.69026929]
[1754341892483,0.4377,3717.2,3717.0,2.69031771]
[1754341893010,0.4377,3717.2,3717.1,2.69026929]
[1754341893242,1.03575764,3717.2,3717.0,2.6903397]
[1754341893439,0.4977,3717.1,3716.2,0.4858]
[1754341893720,0.1344,3716.9,3716.3,0.1344]
[1754341893903,0.1344,3716.9,3716.6,2.69057538]
[1754341894088,0.1344,3716.9,3716.7,2.6905478]
[1754341894304,0.86804,3716.8,3716.7,2.6905478]
[1754341894508,0.81804,3716.8,3716.7,2.6905478]
[1754341894715,0.81804,3716.8,3716.6,2.69062124]
[1754341894917,0.9354,3716.7,3716.3,0.1344]
[1754341895115,4.31637702,3716.6,3716.3,0.1344]
[1754341895301,0.9354,3716.5,3716.3,0.1344]
[1754341895503,0.1344,3716.3,3716.0,2.69101885]
[1754341895715,4.6077,3716.2,3716.0,2.69101885]
[1754341896089,4.6077,3716.2,3716.1,2.69099324]
[1754341896289,4.6077,3716.2,3715.7,0.6202]
[1754341896485,4.6077,3716.2,3715.8,2.69115264]
[1754341896717,4.6077,3716.2,3716.1,2.69099324]
[1754341897118,4.6077,3716.2,3716.0,2.69103802]
[1754341897823,4.6077,3716.2,3715.1,3.0]
[1754341897824,0.9354,3716.1,3715.0,0.4858]
[1754341898043,0.1344,3715.8,3715.1,0.1344]
[1754341898249,5.1034,3715.7,3714.7,0.4858]
[1754341898544,0.1344,3715.1,3714.5,0.1344]
[1754341898741,5.1044,3715.0,3714.8,2.69192452]
[1754341899105,4.6067,3715.0,3714.6,2.69204329]
[1754341899306,0.1344,3715.1,3714.5,0.1344]
[1754341899523,4.17,3715.0,3714.7,0.4858]
[1754341899710,0.1344,3715.3,3714.8,0.4858]
[1754341899910,4.171,3715.2,3714.8,3.17773496]
[1754341900120,4.60154,3715.2,3714.8,2.69188801]
[1754341900323,0.1344,3715.0,3714.6,2.69200907]
[1754341900517,0.1344,3715.0,3714.4,2.82758239]
[1754341900518,0.96904828,3714.9,3714.4,0.001]
[1754341900795,0.1344,3714.5,3714.4,0.001]
[1754341901116,0.1344,3714.5,3714.4,2.69322485]
[1754341901319,0.5721,3714.5,3714.4,0.001]
[1754341901610,0.5221,3714.5,3714.4,0.001]
[1754341902011,0.5221,3714.5,3714.4,2.69322485]
[1754341902894,0.0844,3714.5,3714.4,2.69322485]
[1754341903097,4.17,3714.5,3714.4,0.001]
[1754341903378,4.17,3714.5,3714.4,3.17902485]
[1754341903996,0.1344,3714.9,3714.4,0.4868]
[1754341904332,4.171,3714.8,3714.6,2.69207514]
[1754341904515,4.171,3714.8,3714.6,2.69206578]
[1754341904716,0.4377,3714.7,3714.6,2.69206578]
[1754341904935,0.4377,3714.7,3714.5,2.6921347]
[1754341905236,0.4377,3714.7,3714.6,2.6920799]
[1754341905595,0.4377,3714.7,3714.4,0.001]
[1754341905802,0.4377,3714.6,3714.4,0.001]
[1754341906123,0.1344,3714.5,3714.4,0.001]
[1754341906307,0.5721,3714.5,3714.4,0.001]
[1754341906511,3.76195237,3714.5,3714.4,0.001]
[1754341906723,3.78725237,3714.5,3714.4,0.001]
[1754341906897,4.8997029,3714.5,3714.4,0.001]
[1754341907124,2.20755053,3714.5,3714.4,0.001]
[1754341907553,0.1344,3714.5,3714.4,0.001]
[1754341907827,4.17,3714.5,3714.4,3.14962485]
[1754341908257,4.17,3714.5,3714.4,0.001]
[1754341908446,4.633,3714.5,3714.4,0.001]
[1754341909231,4.7674,3714.5,3714.4,0.001]
[1754341909554,4.3044,3714.5,3714.4,2.69322485]
[1754341910069,4.3054,3714.5,3714.4,3.14962485]
[1754341910255,4.3044,3714.5,3714.4,3.14962485]
[1754341910438,4.3044,3714.5,3714.4,0.001]
[1754341910966,4.3044,3714.5,3714.4,2.69322485]
[1754341912148,2.69155572,3715.4,3714.4,1.49049872]
[1754341912347,0.52598,3716.2,3714.5,2.69215004]
[1754341912348,2.69174599,3715.1,3714.5,2.69215004]
[1754341912563,0.1344,3714.7,3714.4,0.001]
[1754341912744,4.18,3714.6,3714.4,0.001]
[1754341912939,5.07444,3714.6,3714.4,0.001]
[1754341913142,0.463,3714.5,3714.4,0.001]
[1754341913368,0.9435,3714.5,3714.4,0.001]